fUSD/lending_fUSD_20260313
["ID","MTS","AMOUNT","RATE_DAILY","PERIOD"]
[408328094,1773435041420,-500.0,0.00019997,2]
[408328095,1773435041429,-500.0,0.00019997,2]
[408328096,1773435041439,-500.0,0.00019997,2]
[408328097,1773435041448,-649.73985226,0.00019997,2]
[408328098,1773435041458,-500.0,0.00019997,2]
[408328099,1773435041469,-500.0,0.00019997,2]
[408328100,1773435041479,-500.0,0.00019997,2]
[408328101,1773435041488,-500.0,0.00019997,2]
[408328102,1773435041498,-224.68015401,0.00019997,2]
[408328103,1773435041507,-397.97236465,0.00019998,2]
[408328104,1773435041517,-890.56485378,0.00019999,2]
[408328105,1773435041527,-300.0,0.00019999,2]
[408328106,1773435041535,-300.0,0.00019999,2]
[408328107,1773435041544,-666.0,0.00019999,2]
[408328108,1773435041554,-300.0,0.00019999,2]
[408328109,1773435041563,-500.0,0.00019999,2]
[408328110,1773435041573,-500.0,0.00019999,2]
[408328111,1773435041583,-500.0,0.00019999,2]
[408328112,1773435041592,-500.0,0.00019999,2]
[408328113,1773435041602,-500.0,0.00019999,2]
[408328114,1773435041611,-500.0,0.00019999,2]
[408328115,1773435041621,-500.0,0.00019999,2]
[408328116,1773435041630,-500.0,0.00019999,2]
[408328117,1773435041640,-500.0,0.00019999,2]
[408328118,1773435041649,-500.0,0.00019999,2]
[408328119,1773435041659,-500.0,0.00019999,2]
[408328120,1773435041669,-500.0,0.00019999,2]
[408328121,1773435041679,-500.0,0.00019999,2]
[408328122,1773435041689,-500.0,0.00019999,2]
[408328123,1773435041699,-500.0,0.00019999,2]
[408328124,1773435041708,-500.0,0.00019999,2]
[408328125,1773435041717,-500.0,0.00019999,2]
[408328126,1773435041727,-500.0,0.00019999,2]
[408328127,1773435041737,-500.0,0.00019999,2]
[408328128,1773435041747,-500.0,0.00019999,2]
[408328129,1773435041756,-500.0,0.00019999,2]
[408328130,1773435041766,-418.85,0.00019999,2]
[408328131,1773435041776,-500.0,0.00019999,2]
[408328132,1773435041785,-191.31621318,0.00019999,2]
[408328133,1773435041795,-1153.73881169,0.00019999,5]
[408328134,1773435041805,-482.59865916,0.00019999,2]
[408328135,1773435041814,-500.0,0.00019999,2]
[408328136,1773435041823,-500.0,0.00019999,2]
[408328137,1773435041832,-500.0,0.00019999,2]
[408328138,1773435041842,-500.0,0.00019999,2]
[408328139,1773435041851,-500.0,0.00019999,2]
[408328140,1773435041861,-500.0,0.00019999,2]
[408328141,1773435041871,-500.0,0.00019999,2]
[408328142,1773435041881,-500.0,0.00019999,2]
[408328143,1773435041891,-500.0,0.00019999,2]
[408328144,1773435041900,-546.33,0.00019999,2]
[408328145,1773435041909,-500.0,0.00019999,2]
[408328146,1773435041919,-500.0,0.00019999,2]
[408328147,1773435041928,-500.0,0.00019999,2]
[408328148,1773435041938,-500.0,0.00019999,2]
[408328149,1773435041947,-500.0,0.00019999,2]
[408328150,1773435041957,-500.0,0.00019999,2]
[408328151,1773435041966,-500.0,0.00019999,2]
[408328152,1773435041976,-479.42632625,0.00019999,2]
[408328153,1773435041985,-500.0,0.00019999,2]
[408328154,1773435041994,-500.0,0.00019999,2]
[408328155,1773435042004,-500.0,0.00019999,2]
[408328156,1773435042013,-156.89992437,0.00019999,2]
[408328157,1773435042022,-500.0,0.00019999,2]
[408328158,1773435042033,-500.0,0.00019999,2]
[408328159,1773435042042,-500.0,0.00019999,2]
[408328160,1773435042052,-500.0,0.00019999,2]
[408328161,1773435042063,-500.0,0.00019999,2]
[408328162,1773435042072,-274.9282927,0.00019999,2]
[408328163,1773435042081,-500.0,0.00019999,2]
[408328164,1773435042092,-500.0,0.00019999,2]
[408328165,1773435042103,-500.0,0.00019999,2]
[408328166,1773435042114,-500.0,0.00019999,2]
[408328167,1773435042123,-500.0,0.00019999,2]
[408328168,1773435042132,-500.0,0.00019999,2]
[408328169,1773435042142,-500.0,0.00019999,2]
[408328170,1773435042151,-500.0,0.00019999,2]
[408328171,1773435042161,-500.0,0.00019999,2]
[408328172,1773435042171,-592.91608988,0.00019999,2]
[408328173,1773435042180,-612.38393485,0.00019999,2]
[408328174,1773435042190,-500.0,0.00019999,2]
[408328175,1773435042199,-500.0,0.00019999,2]
[408328176,1773435042208,-500.0,0.00019999,2]
[408328177,1773435042218,-500.0,0.00019999,2]
[408328178,1773435042228,-500.0,0.00019999,2]
[408328179,1773435042237,-500.0,0.00019999,2]
[408328180,1773435042247,-500.0,0.00019999,2]
[408328181,1773435042255,-500.0,0.00019999,2]
[408328183,1773435042265,-500.0,0.00019999,2]
[408328184,1773435042275,-500.0,0.00019999,2]
[408328185,1773435042284,-500.0,0.00019999,2]
[408328186,1773435042293,-500.0,0.00019999,2]
[408328187,1773435042303,-500.0,0.00019999,2]
[408328188,1773435042314,-500.0,0.00019999,2]
[408328190,1773435042323,-500.0,0.00019999,2]
[408328191,1773435042333,-500.0,0.00019999,2]
[408328193,1773435042342,-500.0,0.00019999,2]
[408328194,1773435042352,-500.0,0.00019999,2]
[408328195,1773435042365,-500.0,0.00019999,2]
[408328196,1773435042375,-230.118378,0.00019999,2]
[408328198,1773435042384,-3691.0,0.0002,2]
[408328199,1773435042394,-4842.0,0.0002,2]
[408328201,1773435042405,-896509.66101271,0.0002,2]
[408328202,1773435042427,-250.0,0.00019866,2]
[408328203,1773435042437,-620.38887046,0.0002,2]
[408328204,1773435042448,-2784.03994496,0.0002,2]
[408328205,1773435042460,-4779.76509798,0.0002,2]
[408328206,1773435042472,-97541.87683908,0.0002,2]
[408328207,1773435042490,-411.79310182,0.0002,2]
[408328208,1773435042502,-4580.05,0.0002,2]
[408328209,1773435042513,-420.81679979,0.0002,2]
[408328210,1773435042542,-802921.78992841,0.0002,2]
[408328211,1773435042551,-500.0,0.0002,2]
[408328212,1773435042561,-200.0,0.0002,2]
[408328213,1773435042570,-188.0,0.0002,2]
[408328214,1773435042580,-1803105.94904755,0.0002,2]
[408328215,1773435042589,-97945.0295298,0.0002,2]
[408328216,1773435042625,-155.85183097,0.0001973,2]
[408328217,1773435042635,-250.0,0.0001984,2]
[408328218,1773435042644,-42768.04034026,0.0002,2]
[408328219,1773435042659,-488.27091467,0.0002,2]
[408328220,1773435042675,-1558.72759905,0.0002,2]
[408328222,1773435042826,-646.49505416,0.000187,2]
[408328223,1773435042836,-421.18668724,0.00019433,2]
[408328224,1773435042848,-4210.31984443,0.00019433,2]
[408328225,1773435042858,-186.03,0.00019726,2]
[408328226,1773435042869,-250.0,0.00019748,2]
[408328227,1773435042879,-250.0,0.00019781,2]
[408328228,1773435042888,-250.0,0.00019798,2]
[408328229,1773435042898,-48665.71024452,0.0002,2]
[408328230,1773435042914,-534.26111805,0.0002,2]
[408328232,1773435042929,-137409.99999998,0.0002,2]
[408328239,1773435045325,-849.0,0.0002,2]
[408328240,1773435045381,-190494.76638332,0.0002,2]
[408328241,1773435045596,-600.0,0.0002,2]
[408328242,1773435045653,-356.082,0.0002,2]
[408328251,1773435063331,300.0,0.00018498,2]
[408328252,1773435073703,479.7863268,0.00032876,120]
[408328253,1773435092303,655.0,0.0003287,120]
[408328254,1773435093227,337.0,0.0003287,120]
[408328255,1773435095264,176.06078434,0.0003287,120]
[408328256,1773435145146,515.0,0.0003287,120]
[408328257,1773435206944,184.0,0.0003287,120]
[408328258,1773435264609,521.71987509,0.0003287,120]
[408328259,1773435470931,300.51,0.00016438,7]
[408328260,1773435471007,323.28,0.00016438,7]
[408328261,1773435531578,226.29,0.00016438,7]
[408328262,1773435531605,210.36,0.00016438,7]
[408328263,1773435540817,-1200.0,0.00014998,2]
[408328264,1773435540846,-300.0,0.00014999,2]
[408328265,1773435540874,-1200.0,0.00014999,2]
[408328266,1773435540902,-150.0,0.00014999,2]
[408328267,1773435540930,-294.0,0.00014999,2]
[408328268,1773435540957,-300.0,0.00014999,2]
[408328269,1773435540984,-250.0,0.00014999,2]
[408328270,1773435541014,-600.0,0.00015,2]
[408328271,1773435541044,-250.0,0.00015,2]
[408328272,1773435541193,-612.01,0.00015,2]
[408328273,1773435592483,158.41,0.00016438,7]
[408328274,1773435592508,245.41,0.00016438,7]
[408328275,1773435653279,184.8,0.00016438,7]
[408328277,1773435758678,10000.01,9.5e-05,3]
[408328278,1773435762507,10000.0,0.00032877,120]
[408328279,1773435786627,10000.0,0.00032877,120]
[408328280,1773435798199,166.66,0.0001,2]
[408328281,1773435798224,61.67176339,0.0001,2]
[408328282,1773436054127,-151.0,0.00014991,2]
[408328283,1773436054148,-151.0,0.00014991,2]
[408328284,1773436054167,-151.0,0.00014991,2]
[408328285,1773436054188,-234.76486537,0.00014991,2]
[408328286,1773436054213,-183.92742074,0.00014993,2]
[408328287,1773436054234,-289.41103785,0.00014995,2]
[408328288,1773436054254,-1121.0,0.00014998,2]
[408328289,1773436054275,-300.0,0.00014998,2]
[408328290,1773436054296,-1200.0,0.00014998,2]
[408328291,1773436054316,-150.0,0.00014999,2]
[408328292,1773436054335,-99.25738494,0.00015,2]
[408328293,1773436151117,-150.0,0.00014999,2]
[408328294,1773436151137,-119363.57685828,0.00015,2]
[408328295,1773436151157,-274.0,0.00015,2]
[408328296,1773436151178,-255.0,0.00016124,2]
[408328297,1773436151200,-5000.00730225,0.000162,5]
[408328298,1773436151221,-527.53385278,0.00016272,2]
[408328299,1773436151242,-300.0,0.0001649,2]
[408328300,1773436151263,-2500.0,0.0001649,2]
[408328301,1773436151282,-195.0,0.0001649,2]
[408328302,1773436151301,-1463.867215,0.0001649,2]
[408328303,1773436151320,-2500.0,0.0001649,2]
[408328304,1773436151340,-2500.0,0.0001649,2]
[408328305,1773436151359,-2500.0,0.0001649,2]
[408328306,1773436151379,-1883.62566338,0.0001649,2]
[408328307,1773436151398,-600.0,0.0001649,2]
[408328308,1773436151419,-300.0,0.0001649,2]
[408328309,1773436151442,-195.0,0.0001649,2]
[408328310,1773436151464,-195.0,0.0001649,2]
[408328311,1773436151485,-200.80539257,0.0001649,2]
[408328312,1773436151505,-2378.57,0.0001649,2]
[408328313,1773436151525,-250.0,0.0001649,2]
[408328314,1773436151546,-1680.0,0.00016498,2]
[408328315,1773436151568,-195.0,0.000165,2]
[408328316,1773436151587,-300.0,0.00017,2]
[408328317,1773436151606,-353.23643771,0.00017339,2]
[408328318,1773436159118,-79.76356229,0.00017339,2]
[408328319,1773436159149,-153.32,0.00017444,2]
[408328320,1773436159180,-185.9,0.00017449,2]
[408328321,1773436159211,-500.0,0.00017562,2]
[408328322,1773436159239,-800.0,0.00017808,2]
[408328323,1773436159266,-506.94636935,0.000179,2]
[408328324,1773436219269,1213.82,0.00032877,120]
[408328331,1773436231494,-500.0,0.0001575,2]
[408328333,1773436231503,-694.56216659,0.000179,2]
[408328335,1773436231513,-210.51,0.00018278,2]
[408328337,1773436231523,-500.0,0.00018336,2]
[408328339,1773436231532,-2520.0,0.00018501,2]
[408328341,1773436231543,-909.0,0.00018598,2]
[408328343,1773436231553,-300.0,0.00018598,2]
[408328344,1773436231562,-500.0,0.00018599,2]
[408328345,1773436231571,-500.0,0.00018599,2]
[408328346,1773436231581,-500.0,0.00018599,2]
[408328347,1773436231590,-500.0,0.00018599,2]
[408328348,1773436231599,-500.0,0.00018599,2]
[408328349,1773436231609,-289.3873478,0.00018599,2]
[408328350,1773436231619,-500.0,0.00018599,2]
[408328351,1773436231628,-500.0,0.00018599,2]
[408328352,1773436231638,-500.0,0.00018599,2]
[408328353,1773436231647,-500.0,0.00018599,2]
[408328354,1773436231657,-500.0,0.00018599,2]
[408328355,1773436231667,-500.0,0.00018599,2]
[408328356,1773436231676,-500.0,0.00018599,2]
[408328357,1773436231686,-500.0,0.00018599,2]
[408328358,1773436231696,-500.0,0.00018599,2]
[408328359,1773436231706,-500.0,0.00018599,2]
[408328360,1773436231720,-500.0,0.00018599,2]
[408328361,1773436231730,-649.73985226,0.00018599,2]
[408328362,1773436231740,-500.0,0.00018599,2]
[408328363,1773436231751,-224.68015401,0.00018599,2]
[408328364,1773436231760,-500.0,0.00018599,2]
[408328365,1773436231770,-500.0,0.00018599,2]
[408328366,1773436231780,-347.0,0.00018629,2]
[408328367,1773436231793,-200.0,0.00018642,2]
[408328368,1773436231803,-214.2541,0.000187,2]
[408328369,1773436231812,-457.0501,0.000188,2]
[408328370,1773436231821,-500.0,0.00018999,2]
[408328371,1773436231831,-181.08010149,0.00018999,2]
[408328372,1773436231839,-200.0,0.00018999,2]
[408328374,1773436231848,-1214.0,0.00019,2]
[408328376,1773436231857,-923.0,0.00019,2]
[408328377,1773436231867,-2807.0,0.0001904,2]
[408328378,1773436231875,-500.0,0.00019054,2]
[408328379,1773436231885,-350.0,0.00019083,2]
[408328380,1773436231894,-500.0,0.00019109,2]
[408328381,1773436231903,-500.0,0.00019164,2]
[408328382,1773436231912,-500.0,0.00019219,2]
[408328383,1773436231921,-484.87129062,0.00019239,2]
[408328384,1773436231931,-1000.0,0.0001926,2]
[408328385,1773436231940,-500.0,0.0001926,2]
[408328386,1773436231949,-472.0,0.00019265,2]
[408328387,1773436231959,-472.0,0.00019284,2]
[408328388,1773436231968,-484.87129062,0.00019333,2]
[408328389,1773436231977,-500.0,0.00019338,2]
[408328390,1773436231986,-336.98281167,0.00019338,2]
[408328391,1773436231995,-500.0,0.00019338,2]
[408328392,1773436232005,-500.0,0.00019338,2]
[408328393,1773436232015,-156.21003878,0.00019338,2]
[408328394,1773436232024,-501.2232109,0.00019338,2]
[408328395,1773436232034,-500.0,0.00019338,2]
[408328396,1773436232043,-500.0,0.00019338,2]
[408328397,1773436232053,-500.0,0.00019338,2]
[408328398,1773436232062,-500.0,0.00019338,2]
[408328399,1773436232071,-500.0,0.00019338,2]
[408328400,1773436232081,-500.0,0.00019338,2]
[408328401,1773436232090,-371.52528432,0.00019338,2]
[408328402,1773436232100,-418.01080708,0.00019338,2]
[408328403,1773436232109,-500.0,0.00019338,2]
[408328404,1773436232120,-500.0,0.00019338,2]
[408328405,1773436232130,-331.90027881,0.00019338,2]
[408328406,1773436232139,-302.52145763,0.00019338,2]
[408328407,1773436232148,-500.0,0.00019338,2]
[408328408,1773436232158,-371.52539543,0.00019338,2]
[408328409,1773436232167,-500.0,0.00019338,2]
[408328410,1773436232177,-499.99999999,0.00019338,2]
[408328411,1773436232186,-417.18,0.00019339,2]
[408328412,1773436232195,-7801.73,0.00019339,2]
[408328413,1773436232205,-328.94,0.00019339,2]
[408328414,1773436232215,-9999.99,0.00019339,2]
[408328415,1773436232224,-3199.71,0.00019339,2]
[408328416,1773436232233,-150.99,0.00019339,2]
[408328417,1773436232243,-299.99,0.00019339,7]
[408328418,1773436232253,-1616.53,0.00019339,2]
[408328419,1773436232262,-3095.01968049,0.00019339,2]
[408328420,1773436232279,-273.719,0.00019339,2]
[408328421,1773436232290,-1668.08048938,0.00019339,2]
[408328422,1773436232301,-3150.72204124,0.00019339,2]
[408328423,1773436232312,-1037.25,0.00019339,2]
[408328424,1773436232323,-1085.84254698,0.00019339,2]
[408328425,1773436232335,-6650.644345,0.00019339,2]
[408328426,1773436232346,-3644.71323357,0.00019339,2]
[408328427,1773436232356,-6240.04182098,0.00019339,2]
[408328428,1773436232368,-18419.14443249,0.00019339,2]
[408328429,1773436232379,-13742.63240987,0.00019339,2]
[408328430,1773436232388,-516.89,0.00019339,2]
[408328431,1773436232398,-150.99,0.00019339,2]
[408328432,1773436232408,-4406.63,0.00019339,2]
[408328433,1773436232419,-4999.99,0.00019339,2]
[408328434,1773436232428,-9336.88,0.00019339,2]
[408328435,1773436232437,-5339.1,0.00019339,2]
[408328436,1773436232447,-430.52,0.00019339,2]
[408328437,1773436232457,-9999.99,0.00019339,2]
[408328438,1773436232467,-9999.99,0.00019339,2]
[408328439,1773436232477,-472.0,0.00019353,2]
[408328440,1773436232487,-500.0,0.00019373,2]
[408328441,1773436232497,-621.90362035,0.00019373,2]
[408328442,1773436232507,-484.87129062,0.00019428,2]
[408328443,1773436232516,-224.81,0.00019463,2]
[408328444,1773436232526,-557.0,0.00019482,2]
[408328445,1773436232536,-557.0,0.00019484,2]
[408328446,1773436232546,-484.87129062,0.00019522,2]
[408328447,1773436232555,-1000.0,0.00019534,2]
[408328448,1773436232565,-500.0,0.00019534,2]
[408328449,1773436232747,-150.0,0.00019562,2]
[408328450,1773436232768,-500.0,0.00019562,2]
[408328451,1773436232778,-150.0,0.00019562,2]
[408328452,1773436232791,-150.0,0.00019562,2]
[408328453,1773436232801,-150.0,0.00019562,2]
[408328454,1773436232810,-150.0,0.00019562,2]
[408328455,1773436232820,-150.0,0.00019562,2]
[408328456,1773436232829,-150.0,0.00019562,2]
[408328457,1773436232839,-200.0,0.00019562,2]
[408328458,1773436232849,-500.0,0.00019562,2]
[408328459,1773436232858,-150.0,0.00019562,2]
[408328460,1773436232868,-150.0,0.00019562,2]
[408328461,1773436232878,-150.0,0.00019562,2]
[408328462,1773436232887,-150.0,0.00019562,2]
[408328463,1773436232897,-1712.89361468,0.000196,2]
[408328464,1773436232906,-484.87129062,0.00019617,2]
[408328465,1773436232915,-150.0,0.00019617,2]
[408328466,1773436232926,-500.0,0.00019617,2]
[408328467,1773436232935,-150.0,0.00019617,2]
[408328468,1773436232946,-207.07135591,0.00019617,2]
[408328469,1773436232955,-550.0,0.00019617,2]
[408328470,1773436232965,-261.14236726,0.00019617,2]
[408328471,1773436232975,-150.0,0.00019617,2]
[408328472,1773436232984,-150.0,0.00019617,2]
[408328473,1773436232994,-250.0,0.00019617,2]
[408328474,1773436233004,-500.0,0.00019617,2]
[408328475,1773436233013,-150.0,0.00019672,2]
[408328476,1773436233023,-500.0,0.00019672,2]
[408328477,1773436233032,-150.0,0.00019672,2]
[408328478,1773436233041,-150.0,0.00019672,2]
[408328479,1773436233051,-550.0,0.00019672,2]
[408328480,1773436233061,-195.0,0.0001969,2]
[408328481,1773436233071,-912.36,0.00019711,2]
[408328482,1773436233082,-484.87129062,0.00019711,2]
[408328483,1773436233092,-557.0,0.00019723,2]
[408328484,1773436233102,-150.0,0.00019726,2]
[408328485,1773436233111,-500.0,0.00019726,2]
[408328486,1773436233121,-150.0,0.00019726,2]
[408328487,1773436233131,-475.66916377,0.00019775,2]
[408328488,1773436233140,-150.0,0.00019781,2]
[408328489,1773436233149,-500.0,0.00019781,2]
[408328490,1773436233159,-252.46098408,0.00019781,2]
[408328491,1773436233168,-2463.0,0.0001979,2]
[408328492,1773436233178,-5998.0,0.0001979,2]
[408328493,1773436233188,-309.00073,0.000198,2]
[408328494,1773436233198,-309.00072,0.000198,2]
[408328495,1773436233208,-2038.0,0.000198,2]
[408328496,1773436233217,-484.87129062,0.00019806,2]
[408328497,1773436233227,-1000.0,0.00019808,2]
[408328498,1773436233236,-500.0,0.00019808,2]
[408328499,1773436233246,-153.55983089,0.00019836,2]
[408328500,1773436233255,-150.0,0.00019836,2]
[408328501,1773436233264,-782.14,0.00019841,2]
[408328502,1773436233274,-2498.38500146,0.00019875,2]
[408328503,1773436233286,-3301.61499854,0.00019875,2]
[408328504,1773436233295,-5800.0,0.00019883,2]
[408328505,1773436233305,-5693.8987265,0.00019892,2]
[408328506,1773436233317,-106.1012735,0.00019892,2]
[408328507,1773436233327,-945.38837468,0.00019893,2]
[408328508,1773436233337,-945.38837467,0.00019894,2]
[408328509,1773436233346,-945.38837467,0.00019895,2]
[408328510,1773436233355,-945.38837467,0.00019895,2]
[408328511,1773436233365,-945.38837467,0.00019896,2]
[408328512,1773436233375,-945.38837467,0.00019897,2]
[408328513,1773436233384,-945.38837467,0.00019898,2]
[408328514,1773436233394,-945.38837467,0.00019898,2]
[408328515,1773436233403,-500.0,0.00019899,2]
[408328516,1773436233413,-500.0,0.00019899,2]
[408328517,1773436233422,-500.0,0.00019899,2]
[408328518,1773436233431,-2647.502,0.00019899,2]
[408328519,1773436233440,-176.606,0.00019899,2]
[408328520,1773436233449,-945.38837467,0.00019899,2]
[408328521,1773436233458,-174.40875593,0.000199,6]
[408328522,1773436233467,-222.96576444,0.000199,6]
[408328523,1773436233476,-214.31849565,0.000199,6]
[408328524,1773436233486,-228.17134077,0.000199,6]
[408328525,1773436233495,-1000.0,0.000199,2]
[408328526,1773436233505,-3361.834,0.000199,2]
[408328527,1773436233515,-9287.80937644,0.000199,3]
[408328528,1773436233525,-758.21905094,0.000199,2]
[408328529,1773436233536,-3160.7594,0.000199,2]
[408328530,1773436233546,-1882.6182,0.000199,2]
[408328531,1773436233556,-5800.0,0.000199,2]
[408328532,1773436233566,-484.87129062,0.000199,2]
[408328533,1773436233575,-415.38420546,0.000199,2]
[408328534,1773436233585,-18671.86794624,0.000199,2]
[408328535,1773436233595,-634.24084667,0.000199,2]
[408328536,1773436233605,-197.23311885,0.000199,2]
[408328537,1773436233615,-4523.86177647,0.000199,2]
[408328538,1773436233624,-1000.0,0.000199,2]
[408328539,1773436233635,-945.38837467,0.000199,2]
[408328540,1773436233645,-2305.20397352,0.000199,2]
[408328541,1773436233655,-2000.0,0.000199,2]
[408328542,1773436233664,-400.01,0.00019902,2]
[408328543,1773436233673,-160.0,0.00019903,2]
[408328544,1773436233683,-250.0,0.00019918,2]
[408328545,1773436233692,-1000.0,0.00019921,2]
[408328546,1773436233701,-500.0,0.00019944,2]
[408328547,1773436233713,-500.0,0.00019944,2]
[408328548,1773436233724,-500.0,0.00019944,2]
[408328549,1773436233733,-500.0,0.00019944,2]
[408328550,1773436233742,-500.0,0.00019944,2]
[408328551,1773436233752,-250.0,0.00019944,2]
[408328552,1773436233762,-600.0,0.0001997,2]
[408328553,1773436233772,-4511.02,0.0001997,2]
[408328554,1773436233781,-153.56106976,0.00019972,2]
[408328555,1773436233791,-332.0,0.00019973,2]
[408328556,1773436233801,-500.0,0.00019973,2]
[408328557,1773436233810,-161.62483646,0.00019973,2]
[408328558,1773436233820,-196.25165977,0.00019973,2]
[408328559,1773436233829,-500.0,0.00019973,2]
[408328560,1773436233840,-285.67076732,0.00019973,2]
[408328561,1773436233850,-250.0,0.00019973,2]
[408328562,1773436233860,-2864.1474936,0.0001998,2]
[408328563,1773436233870,-822.91472479,0.0001999,2]
[408328564,1773436233879,-822.91472479,0.0001999,2]
[408328565,1773436233890,-822.91472479,0.0001999,2]
[408328566,1773436233899,-5885.2989164,0.00019993,2]
[408328567,1773436233908,-52210.3548468,0.00019993,2]
[408328568,1773436233921,-765.5077029,0.00019993,2]
[408328569,1773436233931,-834.3403945,0.00019993,2]
[408328571,1773436237546,-2068.30846366,0.00019239,2]
[408328573,1773436237556,-19963.128739,0.00019993,2]
[408328574,1773436237565,-2044.558977,0.00019993,2]
[408328576,1773436237575,-313.2501529,0.00019993,2]
[408328578,1773436237586,-56.09978987,0.00019993,2]
[408328580,1773436237596,-230.62552663,0.00019993,2]
[408328582,1773436237606,-160.10963299,0.00019993,2]
[408328583,1773436237659,-339.89036701,0.00019993,2]
[408328584,1773436237668,-243.65754354,0.00019993,2]
[408328585,1773436237678,-172.36872456,0.00019993,2]
[408328586,1773436237687,-500.0,0.00019993,2]
[408328587,1773436237696,-1984.03320489,0.00019994,2]
[408328588,1773436237707,-1553.52,0.00019994,2]
[408328589,1773436237724,-69000.00000001,0.00019994,2]
[408328590,1773436237736,-55600.2719157,0.00019994,2]
[408328591,1773436237745,-500.0,0.00019995,2]
[408328592,1773436237755,-500.0,0.00019995,2]
[408328593,1773436237765,-500.0,0.00019995,2]
[408328594,1773436237777,-151.0,0.00019997,2]
[408328595,1773436237787,-151.0,0.00019997,2]
[408328596,1773436237797,-500.0,0.00019998,2]
[408328597,1773436237807,-500.0,0.00019998,2]
[408328598,1773436237817,-170.99548292,0.00019998,2]
[408328599,1773436237829,-329.00451708,0.00019998,2]
[408328600,1773436237838,-500.0,0.00019998,2]
[408328601,1773436237848,-500.0,0.00019998,2]
[408328602,1773436237857,-500.0,0.00019998,2]
[408328603,1773436237867,-500.0,0.00019998,2]
[408328604,1773436237878,-500.0,0.00019998,2]
[408328605,1773436237887,-500.0,0.00019998,2]
[408328606,1773436237896,-500.0,0.00019998,2]
[408328607,1773436237907,-500.0,0.00019998,2]
[408328608,1773436237919,-500.0,0.00019998,2]
[408328609,1773436237929,-500.0,0.00019998,2]
[408328611,1773436237938,-500.0,0.00019998,2]
[408328613,1773436237948,-500.0,0.00019998,2]
[408328615,1773436237957,-500.0,0.00019998,2]
[408328617,1773436237967,-500.0,0.00019998,2]
[408328619,1773436237976,-890.56485378,0.00019999,2]
[408328621,1773436237985,-385.0221004,0.00019999,2]
[408328622,1773436237994,-300.0,0.00019999,2]
[408328624,1773436238004,-300.0,0.00019999,2]
[408328626,1773436238014,-666.0,0.00019999,2]
[408328628,1773436238023,-500.0,0.00019999,2]
[408328630,1773436238034,-500.0,0.00019999,2]
[408328632,1773436238043,-1153.73881169,0.00019999,5]
[408328634,1773436238053,-500.0,0.00019999,2]
[408328636,1773436238062,-500.0,0.00019999,2]
[408328637,1773436238072,-479.42632625,0.00019999,2]
[408328639,1773436238082,-482.59865916,0.00019999,2]
[408328641,1773436238091,-500.0,0.00019999,2]
[408328643,1773436238101,-500.0,0.00019999,2]
[408328645,1773436238114,-500.0,0.00019999,2]
[408328647,1773436238124,-156.89992437,0.00019999,2]
[408328649,1773436238133,-792.1504483,0.00019999,2]
[408328650,1773436238143,-500.0,0.00019999,2]
[408328651,1773436238152,-500.0,0.00019999,2]
[408328652,1773436238162,-500.0,0.00019999,2]
[408328653,1773436238172,-500.0,0.00019999,2]
[408328654,1773436238182,-500.0,0.00019999,2]